bitfinex-derivatives/quotes_ETHF0:USTF0_20260112
["timestamp","ask_amount","ask_price","bid_price","bid_amount"]
[1768250540061,1.24593123,3104.7,3103.9,0.13286283]
[1768250540458,1.24593123,3104.9,3103.9,0.13286283]
[1768250542759,1.24593123,3105.1,3103.9,0.13286283]
[1768250542963,1.02976032,3105.0,3103.9,0.13286283]
[1768250543158,1.24593123,3105.1,3103.9,0.13286283]
[1768250543369,1.0295574,3105.0,3103.9,0.13286283]
[1768250543664,0.16116,3105.3,3103.9,0.13286283]
[1768250543865,1.4663179,3105.2,3103.9,0.13286283]
[1768250544068,1.0295598,3105.1,3103.9,0.13286283]
[1768250544263,0.16116,3105.3,3103.9,0.13286283]
[1768250544463,1.02935286,3105.2,3103.9,0.13286283]
[1768250544662,1.02935286,3105.1,3103.9,0.13286283]
[1768250544863,0.16116,3105.3,3103.9,0.13286283]
[1768250545064,1.02935266,3105.2,3103.9,0.13286283]
[1768250545366,1.02935266,3105.1,3103.9,0.13286283]
[1768250545666,0.16116,3105.3,3103.9,0.13286283]
[1768250545858,1.02936314,3105.2,3103.9,0.13286283]
[1768250546060,1.02936314,3105.1,3103.9,0.13286283]
[1768250546367,0.16116,3105.3,3103.9,0.13286283]
[1768250546566,1.02917717,3105.2,3103.9,0.13286283]
[1768250546767,1.02917717,3105.1,3103.9,0.13286283]
[1768250547065,0.16116,3105.3,3103.9,0.13286283]
[1768250547265,1.02913564,3105.2,3103.9,0.13286283]
[1768250547459,1.02913564,3105.1,3103.9,0.13286283]
[1768250547659,0.16116,3105.3,3103.9,0.13286283]
[1768250547966,1.0289664,3105.2,3103.9,0.13286283]
[1768250548164,1.0289664,3105.1,3103.9,0.13286283]
[1768250548363,0.16116,3105.3,3103.9,0.13286283]
[1768250548562,1.02884273,3105.2,3103.9,0.13286283]
[1768250548762,1.02884273,3105.1,3103.9,0.13286283]
[1768250548968,0.16116,3105.3,3103.9,0.13286283]
[1768250549168,1.0288427,3105.2,3103.9,0.13286283]
[1768250549468,1.0288427,3105.1,3103.9,0.13286283]
[1768250549666,0.16116,3105.3,3103.9,0.13286283]
[1768250549868,1.02873544,3105.2,3103.9,0.13286283]
[1768250550055,1.02873544,3105.1,3103.9,0.13286283]
[1768250550261,0.16116,3105.3,3103.9,0.13286283]
[1768250550564,1.02868229,3105.2,3103.9,0.13286283]
[1768250550766,1.02868229,3105.1,3103.9,0.13286283]
[1768250550969,0.16116,3105.3,3103.9,0.13286283]
[1768250551167,1.02868229,3105.2,3103.9,0.13286283]
[1768250551368,1.02868229,3105.1,3103.9,0.13286283]
[1768250551568,0.16116,3105.3,3103.9,0.13286283]
[1768250551868,1.02858463,3105.2,3103.9,0.13286283]
[1768250552069,1.02858463,3105.1,3103.9,0.13286283]
[1768250552260,0.16116,3105.3,3103.9,0.13286283]
[1768250552460,1.18907615,3105.2,3103.9,0.13286283]
[1768250552656,1.02791615,3105.1,3103.9,0.13286283]
[1768250552868,0.16117,3105.1,3103.9,0.13286283]
[1768250553069,1.02786696,3105.0,3103.3,0.13286283]
[1768250553367,1.02781915,3104.9,3103.3,0.13286283]
[1768250553563,0.16117,3105.0,3103.3,0.13286283]
[1768250553757,1.18883354,3104.9,3103.3,0.13286283]
[1768250553961,0.16118,3104.9,3103.3,0.13286283]
[1768250556659,1.41018,3104.9,3103.3,0.13286283]
[1768250557965,0.16118,3104.9,3103.4,0.13570463]
[1768250558572,0.16115,3105.5,3103.4,0.13570463]
[1768250558770,2.43735445,3105.4,3103.4,0.13570463]
[1768250558972,1.18836445,3105.3,3103.4,0.13570463]
[1768250559279,1.02720445,3105.2,3103.4,0.13570463]
[1768250566579,1.02720445,3105.2,3102.7,0.13570463]
[1768250566580,1.24667641,3103.9,3102.7,0.13570463]
[1768250566772,0.16121,3104.2,3102.7,0.13570463]
[1768250566972,1.02814489,3104.1,3102.7,0.13570463]
[1768250567179,0.16121,3104.2,3102.7,0.13570463]
[1768250567378,1.02810895,3104.1,3102.7,0.13570463]
[1768250567579,0.00325121,3104.1,3102.7,0.13856531]
[1768250573084,0.00325121,3104.1,3102.7,1.38524172]
[1768250573284,0.00325121,3104.1,3102.8,0.13570463]
[1768250576084,2.86219377,3105.3,3103.1,0.13570463]
[1768250576284,1.46252278,3105.2,3103.1,0.13570463]
[1768250576485,0.16118,3104.9,3103.1,0.13570463]
[1768250576679,1.02780303,3104.8,3103.1,0.13570463]
[1768250577079,1.03180999,3104.8,3103.1,0.13570463]
[1768250577379,1.02780303,3104.7,3103.1,0.13570463]
[1768250577575,0.00400696,3104.8,3103.5,0.13570463]
[1768250578186,0.00400696,3104.8,3103.0,0.16127]
[1768250578187,0.00400696,3104.8,3103.9,0.13570463]
[1768250580889,0.01568792,3106.2,3103.9,0.13570463]
[1768250581097,1.46398803,3106.1,3104.3,0.13570463]
[1768250581399,1.46398803,3106.0,3104.3,0.13570463]
[1768250581600,1.46398803,3105.9,3104.3,0.13570463]
[1768250581802,1.46398803,3105.8,3104.3,0.13570463]
[1768250582000,1.02881471,3105.7,3104.3,0.13570463]
[1768250582202,1.02881471,3105.6,3104.3,0.13570463]
[1768250582399,0.00365869,3105.8,3104.3,0.13570463]
[1768250582607,1.03560241,3105.7,3104.3,0.13570463]
[1768250582902,1.03560241,3105.6,3104.3,0.13570463]
[1768250583202,0.00365869,3105.8,3104.3,0.13570463]
[1768250583392,1.0353049,3105.7,3104.3,0.13570463]
[1768250583596,1.0353049,3105.6,3104.3,0.13570463]
[1768250583796,0.00365869,3105.8,3104.3,0.13570463]
[1768250584003,1.03530527,3105.7,3104.3,0.13570463]
[1768250584203,1.03530527,3105.6,3104.3,0.13570463]
[1768250584405,0.00365869,3105.8,3104.3,0.13570463]
[1768250584603,1.03503661,3105.7,3104.3,0.13570463]
[1768250584792,0.00365869,3105.8,3104.3,0.13570463]
[1768250584996,1.03503484,3105.7,3104.3,0.13570463]
[1768250585200,0.00365869,3105.8,3104.3,0.13570463]
[1768250585504,1.03495217,3105.7,3104.3,0.13570463]
[1768250585807,1.03478341,3105.6,3104.3,0.13570463]
[1768250586106,0.00365869,3105.8,3104.3,0.13570463]
[1768250586401,1.24667641,3105.4,3103.4,0.13557847]
[1768250586704,1.034448,3105.3,3103.4,0.13557847]
[1768250587003,1.24667641,3105.4,3103.4,0.13557847]
[1768250587207,1.03444802,3105.3,3103.4,0.13557847]
[1768250587399,1.40782641,3105.4,3103.4,0.13557847]
[1768250587598,1.03440704,3105.3,3103.4,0.13557847]
[1768250587802,1.24667641,3105.0,3103.4,0.13557847]
[1768250589307,1.03428141,3104.9,3103.4,0.13557847]
[1768250589507,1.24667641,3105.0,3103.4,0.13557847]
[1768250589803,1.03427866,3104.9,3103.4,0.13557847]
[1768250590106,1.24667641,3105.0,3103.4,0.13557847]
[1768250590305,1.03428029,3104.9,3103.4,0.13557847]
[1768250590506,1.24667641,3105.0,3103.4,0.13557847]
[1768250590708,1.03428277,3104.9,3103.4,0.13557847]
[1768250590907,1.24667641,3105.0,3103.4,0.13557847]
[1768250591206,1.03424481,3104.9,3103.4,0.13557847]
[1768250591401,1.24667641,3105.0,3103.4,0.13557847]
[1768250591601,1.03419982,3104.9,3103.4,0.13557847]
[1768250591802,1.24667641,3105.0,3103.4,0.13557847]
[1768250592002,1.03419982,3104.9,3103.4,0.13557847]
[1768250592305,1.24667641,3105.0,3103.4,0.13557847]
[1768250592513,1.03421628,3104.9,3103.4,0.13557847]
[1768250592707,1.24667641,3105.0,3103.4,0.13557847]
[1768250593007,1.03421721,3104.9,3103.4,0.13557847]
[1768250593201,1.24667641,3105.0,3103.4,0.13557847]
[1768250594410,0.16117,3105.1,3103.4,0.13557847]
[1768250594610,1.03423678,3105.0,3103.4,0.13557847]
[1768250594812,0.16117,3105.1,3103.4,0.13557847]
[1768250595113,1.03423799,3105.0,3103.4,0.13557847]
[1768250595414,0.16117,3105.1,3103.4,0.13557847]
[1768250597307,1.03437083,3105.0,3103.4,0.13557847]
[1768250597507,0.16117,3105.1,3103.4,0.13557847]
[1768250597710,1.0344567,3105.0,3103.4,0.13557847]
[1768250597911,0.16117,3105.1,3103.4,0.13557847]
[1768250598111,1.0344568,3105.0,3103.4,0.13557847]
[1768250598310,0.16117,3105.1,3103.4,0.13557847]
[1768250598620,1.03462713,3105.0,3103.4,0.13557847]
[1768250598914,1.249,3105.5,3103.4,0.13557847]
[1768250599115,1.46927372,3105.4,3103.4,0.13557847]
[1768250599314,1.03460641,3105.3,3103.4,0.13557847]
[1768250599524,1.03460641,3105.2,3103.4,0.13557847]
[1768250599812,1.03460641,3105.1,3103.4,0.13557847]
[1768250600014,1.249,3105.5,3103.4,0.13557847]
[1768250600205,1.46944593,3105.4,3103.4,0.13557847]
[1768250600510,1.46944593,3105.3,3103.8,0.13602528]
[1768250600713,1.03473047,3105.2,3103.8,0.13602528]
[1768250601015,1.03473047,3105.1,3103.8,0.13602528]
[1768250601214,1.249,3105.5,3103.8,0.13602528]
[1768250601417,1.47010298,3105.4,3103.8,0.13602528]
[1768250601711,1.47010298,3105.3,3103.8,0.13602528]
[1768250601904,1.03520092,3105.2,3103.8,0.13602528]
[1768250602104,1.03520092,3105.1,3103.8,0.13602528]
[1768250602410,1.03520092,3105.0,3103.8,0.13602528]
[1768250602614,1.41014,3105.6,3103.8,0.13602528]
[1768250602811,1.47068548,3105.5,3103.8,0.13602528]
[1768250603017,1.47068548,3105.4,3103.8,0.13602528]
[1768250603310,1.47068548,3105.3,3103.8,0.13602528]
[1768250603506,1.03561681,3105.2,3103.8,0.13602528]
[1768250603706,1.03561681,3105.1,3103.8,0.13602528]
[1768250604014,0.16114,3105.6,3103.8,0.13602528]
[1768250604215,1.47127873,3105.5,3103.8,0.13602528]
[1768250604416,1.47127873,3105.4,3103.8,0.13602528]
[1768250604709,1.03600985,3105.3,3103.8,0.13602528]
[1768250605017,1.03600985,3105.2,3103.8,0.13602528]
[1768250605205,0.16114,3105.6,3103.8,0.13602528]
[1768250605406,1.03608994,3105.5,3104.3,1.38231598]
[1768250605606,1.03608994,3105.4,3104.3,1.38231598]
[1768250605915,1.03608994,3105.3,3104.3,1.38231598]
[1768250606110,1.4074307,3105.6,3104.3,1.38231598]
[1768250606314,1.47126249,3105.5,3104.3,1.38231598]
[1768250606516,1.0359619,3105.4,3104.3,1.38231598]
[1768250606813,1.0359619,3105.3,3104.4,0.13602528]
[1768250607014,1.4074307,3105.6,3104.4,0.13602528]
[1768250607206,1.47147045,3105.5,3104.4,0.13602528]
[1768250607402,1.03612933,3105.4,3104.5,1.2462907]
[1768250607607,1.03612933,3105.3,3104.5,1.2462907]
[1768250607807,0.16114,3105.6,3104.5,1.2462907]
[1768250608012,1.03625823,3105.5,3104.5,1.2462907]
[1768250608214,1.03625823,3105.4,3104.5,1.2462907]
[1768250608513,1.03625823,3105.3,3104.5,1.2462907]
[1768250608714,0.16114,3105.6,3104.5,1.2462907]
[1768250608917,1.03620135,3105.5,3104.5,1.2462907]
[1768250609214,1.03620135,3105.4,3105.0,1.38231598]
[1768250609419,0.00365869,3105.8,3105.0,0.13853426]
[1768250609917,0.00365869,3105.8,3105.0,0.00250898]
[1768250615121,0.00365869,3105.8,3105.0,1.38974886]
[1768250615515,0.00365869,3105.8,3105.1,0.14094918]
[1768250617023,1.4074007,3106.3,3105.1,0.14094918]
[1768250617918,1.41003957,3106.3,3105.1,0.14094918]
[1768250618119,0.16374887,3106.3,3105.2,1.2462907]
[1768250618718,1.41003957,3106.3,3105.2,1.2462907]
[1768250619115,1.41003957,3106.3,3105.1,0.14094918]
[1768250621325,1.03011686,3106.2,3105.1,0.14094918]
[1768250621622,1.03011686,3106.1,3105.1,0.14094918]
[1768250621818,1.41003957,3106.3,3105.1,0.14094918]
[1768250622121,1.02996638,3106.2,3105.1,0.14094918]
[1768250622322,1.02996638,3106.1,3105.1,0.14094918]
[1768250622625,1.41003957,3106.3,3105.1,0.14094918]
[1768250622927,1.02995682,3106.2,3105.1,0.14094918]
[1768250623126,1.41003957,3106.3,3105.1,0.14094918]
[1768250623327,1.02999623,3106.2,3105.1,0.14094918]
[1768250623524,1.41003957,3106.3,3105.1,0.14094918]
[1768250623719,1.02992121,3106.2,3105.1,0.14094918]
[1768250623921,1.24892957,3106.3,3105.1,0.14094918]
[1768250624124,1.02992622,3106.2,3105.1,0.14094918]
[1768250624324,1.24892957,3106.3,3105.1,0.14094918]
[1768250624617,0.00263887,3106.3,3105.4,1.38723988]
[1768250625519,0.00263887,3106.3,3105.4,0.14094918]
[1768250626625,1.2462907,3106.0,3105.0,0.14345816]
[1768250626927,1.2462907,3106.2,3105.0,0.14345816]
[1768250633427,0.16112,3106.0,3105.0,0.00250898]
[1768250633628,1.2462907,3105.5,3105.0,0.00250898]
[1768250633931,1.2462907,3105.7,3105.0,0.00250898]
[1768250634535,1.2462907,3105.3,3104.4,0.14094918]
[1768250635434,1.2462907,3105.3,3104.4,0.14486011]
[1768250636032,1.2462907,3105.5,3104.4,0.14486011]
[1768250636924,1.2462907,3105.3,3104.4,0.00391093]
[1768250637125,0.01872315,3105.7,3104.4,0.00391093]
[1768250637325,1.2462907,3105.5,3104.4,0.00391093]
[1768250637526,1.03233993,3105.4,3104.4,0.00391093]
[1768250640338,1.2462907,3105.2,3104.4,0.00391093]
[1768250641437,1.2462907,3105.0,3103.9,0.14094918]
[1768250642538,1.2462907,3105.0,3103.9,0.14508587]
[1768250643326,1.2462907,3104.8,3103.9,0.00413669]
[1768250644737,1.2462907,3105.0,3103.9,0.00413669]
[1768250657038,0.16117,3105.1,3103.9,0.00413669]
[1768250661333,1.03119,3105.0,3103.9,0.00413669]
[1768250661540,0.16117,3105.1,3103.9,0.00413669]
[1768250661737,1.03118996,3105.0,3103.9,0.00413669]
[1768250661936,0.16117,3105.1,3103.9,0.00413669]
[1768250662137,1.03119194,3105.0,3103.9,0.00413669]
[1768250662337,0.16117,3105.1,3103.9,0.00413669]
[1768250662637,1.03182158,3105.0,3103.9,0.00413669]
[1768250662944,0.16117,3105.1,3103.9,0.00413669]
[1768250663146,1.03182083,3105.0,3103.9,0.00413669]
[1768250663334,1.03269812,3104.9,3103.9,0.00413669]
[1768250663536,0.16117,3105.1,3103.9,0.00413669]
[1768250663736,1.03269812,3105.0,3103.9,0.00413669]
[1768250663932,1.03269812,3104.9,3103.9,0.00413669]
[1768250664136,0.16117,3105.1,3103.9,0.00413669]
[1768250664336,1.03269808,3105.0,3103.9,0.00413669]
[1768250664542,1.03269808,3104.9,3103.9,0.00413669]
[1768250664845,1.03269808,3104.8,3103.9,0.00413669]
[1768250665043,0.16117,3105.1,3103.9,0.00413669]
[1768250665246,1.03314076,3105.0,3103.9,0.00413669]
[1768250665438,0.16117,3105.1,3103.9,0.00413669]
[1768250665439,1.03314076,3104.9,3103.9,0.00413669]
[1768250665642,1.03314076,3104.8,3103.9,1.38620013]
[1768250665940,1.2462907,3105.3,3104.0,0.13577274]
[1768250666134,1.46920613,3105.2,3104.0,0.13577274]
[1768250666333,1.46920613,3105.1,3104.0,0.13577274]
[1768250666543,1.03338562,3105.0,3104.0,0.13577274]
[1768250666841,1.03338562,3104.9,3104.0,0.13577274]
[1768250667044,1.2462907,3105.3,3104.0,0.13577274]
[1768250667238,1.46964185,3105.2,3104.0,0.13577274]
[1768250667440,1.41015,3105.5,3104.0,0.13577274]
[1768250667441,1.46964185,3105.1,3104.0,0.13577274]
[1768250667642,1.03369387,3105.0,3104.0,0.13577274]
[1768250667840,1.03369387,3104.9,3104.0,0.13577274]
[1768250668041,1.41015,3105.5,3104.0,0.13577274]
[1768250668244,1.4699482,3105.4,3104.0,0.13577274]
[1768250668445,1.4699482,3105.3,3104.0,0.13577274]
[1768250668746,1.4699482,3105.2,3104.0,0.13577274]
[1768250668946,1.4699482,3105.1,3104.0,0.13577274]
[1768250669140,1.03391154,3105.0,3104.0,0.13577274]
[1768250669342,1.03391154,3104.9,3104.0,0.13577274]
[1768250669542,1.03391154,3104.8,3104.0,0.13577274]
[1768250669842,1.249,3105.4,3104.0,0.13577274]
[1768250670038,1.4706314,3105.3,3104.0,0.13577274]
[1768250670248,1.47063119,3105.2,3104.0,0.13577274]
[1768250670452,1.47063119,3105.1,3104.0,0.13577274]
[1768250670654,1.47063119,3105.0,3104.0,0.13577274]
[1768250670844,1.03440013,3104.9,3104.0,0.13577274]
[1768250671043,0.16115,3105.5,3104.0,0.13577274]
[1768250671254,1.47069101,3105.4,3104.0,0.13577274]
[1768250671446,1.47069101,3105.3,3104.0,0.13577274]
[1768250671649,1.47069101,3105.2,3104.0,0.13577274]
[1768250671848,1.47069101,3105.1,3104.0,0.13577274]
[1768250672058,1.03444049,3105.0,3104.0,0.13577274]
[1768250672359,1.249,3105.9,3104.0,0.13577274]
[1768250672559,1.47083259,3105.8,3104.0,0.13577274]
[1768250672758,1.47083259,3105.7,3104.0,0.13577274]
[1768250673055,1.41012,3105.9,3104.0,0.13577274]
[1768250673056,1.47083259,3105.6,3104.0,0.13577274]
[1768250673265,1.47083259,3105.5,3104.0,0.13577274]
[1768250673468,1.47083259,3105.4,3104.0,0.13577274]
[1768250673666,1.47083259,3105.3,3104.0,0.13577274]
[1768250673864,1.03445968,3105.2,3104.0,0.13577274]
[1768250674060,1.03445968,3105.1,3104.0,0.13577274]
[1768250674261,0.16114,3105.7,3104.0,0.13577274]
[1768250674469,1.24669833,3105.4,3104.0,0.13577274]
[1768250674667,1.47042151,3105.3,3104.0,0.13577274]
[1768250674868,1.47042151,3105.2,3104.0,0.13577274]
[1768250675071,1.03416258,3105.1,3104.0,0.13577274]
[1768250675271,1.03416258,3105.0,3104.0,0.13577274]
[1768250675470,1.03416258,3104.9,3104.0,0.13577274]
[1768250675771,1.03416258,3104.8,3104.0,0.13577274]
[1768250675970,1.40784833,3105.4,3104.0,0.13577274]
[1768250676165,1.47026771,3105.3,3104.0,0.13577274]
[1768250676370,1.47026771,3105.2,3104.0,0.13577274]
[1768250676663,1.47026771,3105.1,3104.0,0.13577274]
[1768250676869,1.03406564,3105.0,3104.0,0.13577274]
[1768250677170,1.03406564,3104.9,3104.0,0.13577274]
[1768250677365,1.03406564,3104.8,3104.0,0.13577274]
[1768250677566,1.40784833,3105.4,3104.0,0.13577274]
[1768250677768,1.47027853,3105.3,3104.0,0.13577274]
[1768250677967,1.47027853,3105.2,3104.0,0.13577274]
[1768250678173,1.47027853,3105.1,3104.0,0.13577274]
[1768250678372,1.0340733,3105.0,3104.0,0.13577274]
[1768250678573,1.0340733,3104.9,3104.0,0.13577274]
[1768250678774,1.0340733,3104.8,3104.0,0.13577274]
[1768250679072,0.16115,3105.4,3104.0,0.13577274]
[1768250679271,1.47029009,3105.3,3104.0,0.13577274]
[1768250679474,1.47029009,3105.2,3104.0,0.13577274]
[1768250679774,1.47029009,3105.1,3104.0,0.13577274]
[1768250679982,1.03408145,3105.0,3104.0,0.13577274]
[1768250680165,1.03408145,3104.9,3104.0,0.13577274]
[1768250680365,1.03408145,3104.8,3104.0,0.13577274]
[1768250680565,0.16115,3105.4,3104.0,0.13577274]
[1768250680768,1.46963013,3105.3,3104.0,0.13577274]
[1768250680969,1.03361995,3105.2,3104.0,0.13577274]
[1768250681170,1.03361995,3105.1,3104.0,0.13577274]
[1768250681368,1.03361995,3105.0,3104.0,0.13577274]
[1768250681571,1.03361995,3104.9,3104.0,0.13577274]
[1768250681771,1.03361995,3104.8,3104.0,0.13577274]
[1768250681980,0.16115,3105.4,3104.0,0.13577274]
[1768250682180,1.03361769,3105.3,3104.0,0.13577274]
[1768250682380,0.16115,3105.4,3104.0,0.13577274]
[1768250682381,1.03361769,3105.2,3104.0,0.13577274]
[1768250682575,1.03361769,3105.1,3104.0,0.13577274]
[1768250682777,1.03361769,3105.0,3104.0,0.13577274]
[1768250683074,1.03361769,3104.9,3104.0,0.13577274]
[1768250683274,1.03361769,3104.8,3104.0,0.13577274]
[1768250683474,0.16115,3105.4,3104.0,0.13577274]
[1768250683678,1.03363071,3105.3,3104.0,0.13577274]
[1768250683871,1.03363071,3105.2,3103.9,0.00413669]
[1768250684066,1.03363071,3105.1,3103.9,0.00413669]
[1768250684267,1.03363071,3105.0,3103.9,0.00413669]
[1768250684484,1.03363071,3104.9,3103.9,0.00413669]
[1768250684782,1.03363071,3104.8,3103.9,0.00413669]
[1768250684982,0.16115,3105.4,3103.9,0.00413669]
[1768250685185,1.03363373,3105.3,3103.9,0.00413669]
[1768250685378,1.03363373,3105.2,3103.9,0.00413669]
[1768250685572,1.03363373,3105.1,3103.9,0.00413669]
[1768250685774,1.03363373,3105.0,3103.9,0.00413669]
[1768250685974,1.03363373,3104.9,3103.9,0.00413669]
[1768250686276,1.03363373,3104.8,3103.9,0.00413669]
[1768250686475,0.17014362,3105.4,3103.9,0.00413669]
[1768250686675,1.46964673,3105.3,3103.9,0.00413669]
[1768250686971,1.46964673,3105.2,3103.9,0.00413669]
[1768250687179,1.46964673,3105.1,3103.9,0.00413669]
[1768250687382,1.03364685,3105.0,3103.9,0.00413669]
[1768250687580,1.03364685,3104.9,3103.9,0.00413669]
[1768250687781,1.03364685,3104.8,3103.9,0.00413669]
[1768250687983,0.16116,3105.3,3103.9,0.00413669]
[1768250688176,1.4696568,3105.2,3103.9,0.00413669]
[1768250688376,1.4696568,3105.1,3103.9,0.00413669]
[1768250688577,1.4696568,3105.0,3103.9,0.00413669]
[1768250688783,1.03365516,3104.9,3103.9,0.00413669]
[1768250689081,1.03365516,3104.8,3103.9,0.00413669]
[1768250689275,0.16116,3105.3,3103.9,0.00413669]
[1768250689475,1.46990531,3105.2,3103.9,0.00413669]
[1768250689680,1.46990531,3105.1,3103.9,0.00413669]
[1768250689874,1.46990531,3105.0,3103.9,0.00413669]
[1768250690079,1.0338299,3104.9,3103.9,0.00413669]
[1768250690389,1.0338299,3104.8,3103.9,0.00413669]
[1768250690685,0.16116,3105.3,3103.9,0.00413669]
[1768250690885,1.46991174,3105.2,3103.9,0.00413669]
[1768250691181,1.46991174,3105.1,3103.9,0.00413669]
[1768250691483,1.46991174,3105.0,3103.9,0.00413669]
[1768250691683,1.0338347,3104.9,3103.9,0.00413669]
[1768250691882,1.0338347,3104.8,3103.9,0.00413669]
[1768250692084,0.16116,3105.3,3103.9,0.00413669]
[1768250692284,1.46993032,3105.2,3103.9,0.00413669]
[1768250692485,1.46993032,3105.1,3103.9,0.00413669]
[1768250692686,1.46993032,3105.0,3103.9,0.00413669]
[1768250692880,1.03384671,3104.9,3103.9,0.00413669]
[1768250693082,1.03384671,3104.8,3103.9,0.00413669]
[1768250693286,0.16116,3105.3,3103.9,0.00413669]
[1768250693579,1.46996731,3105.2,3103.9,0.00413669]
[1768250693884,1.46996731,3105.1,3103.9,0.00413669]
[1768250694089,1.46996731,3105.0,3103.9,0.00413669]
[1768250694384,1.03387123,3104.9,3103.9,0.00413669]
[1768250694582,1.03387123,3104.8,3103.9,0.00413669]
[1768250694782,0.16116,3105.3,3103.9,0.00413669]
[1768250694983,1.46999327,3105.2,3103.9,0.00413669]
[1768250695177,1.46999327,3105.1,3103.9,0.00413669]
[1768250695377,1.46999327,3105.0,3103.9,0.00413669]
[1768250695574,1.03388812,3104.9,3103.9,0.00413669]
[1768250695777,1.03388812,3104.8,3103.9,0.00413669]
[1768250695983,0.16116,3105.3,3103.9,0.00413669]
[1768250696183,1.47012218,3105.2,3103.9,0.00413669]
[1768250696386,0.16116,3105.3,3103.9,0.00413669]
[1768250696387,1.47012218,3105.1,3103.9,0.00413669]
[1768250696573,1.47012218,3105.0,3103.9,0.00413669]
[1768250696778,1.03397837,3104.9,3103.9,0.00413669]
[1768250696979,1.03397837,3104.8,3103.9,0.00413669]
[1768250697178,0.16116,3105.3,3103.9,0.00413669]
[1768250697388,1.47012206,3105.2,3103.9,0.00413669]
[1768250697687,1.47012206,3105.1,3103.9,0.00413669]
[1768250697985,1.47012206,3105.0,3103.9,0.00413669]
[1768250698187,1.03397917,3104.9,3103.9,0.00413669]
[1768250698488,1.03397917,3104.8,3103.9,0.00413669]
[1768250698787,0.16116,3105.3,3103.9,0.00413669]
[1768250698989,1.47012011,3105.2,3103.9,0.00413669]
[1768250699185,1.47012011,3105.1,3103.9,0.00413669]
[1768250699385,1.47012011,3105.0,3103.9,0.00413669]
[1768250699584,1.03397715,3104.9,3103.9,0.00413669]
[1768250699781,1.03397715,3104.8,3103.9,0.00413669]
[1768250699982,0.16116,3105.3,3103.9,0.00413669]
[1768250700282,1.4701132,3105.2,3103.9,0.00413669]
[1768250700482,1.4701132,3105.1,3103.9,0.00413669]
[1768250700681,1.4701132,3105.0,3103.9,0.00413669]
[1768250700881,1.03397209,3104.9,3103.9,0.00413669]
[1768250701085,1.03397209,3104.8,3103.9,0.00413669]
[1768250701387,1.03397209,3104.7,3103.9,0.00413669]
[1768250701588,0.16117,3105.0,3103.9,0.00413669]
[1768250701793,1.469912,3104.9,3103.9,0.00413669]
[1768250702096,1.03383437,3104.8,3103.9,0.00413669]
[1768250702389,1.03383437,3104.7,3103.9,0.00413669]
[1768250702690,0.16117,3105.0,3103.9,0.00413669]
[1768250702877,1.46984264,3104.9,3103.9,0.00413669]
[1768250703077,1.03386948,3104.8,3103.9,0.00413669]
[1768250703280,1.03386948,3104.7,3103.9,0.00413669]
[1768250703487,0.16117,3105.0,3103.9,0.00413669]
[1768250703680,1.46999694,3104.9,3103.9,0.00413669]
[1768250703882,1.03397708,3104.8,3103.9,0.00413669]
[1768250704084,1.03397708,3104.7,3103.9,0.00413669]
[1768250704385,0.16117,3105.0,3103.9,0.00413669]
[1768250704586,1.47024676,3104.9,3103.9,0.00413669]
[1768250704792,1.03414993,3104.8,3103.9,0.00413669]
[1768250704990,1.03414993,3104.7,3103.9,0.00413669]
[1768250705184,0.16117,3105.0,3103.9,0.00413669]
[1768250705383,1.4701317,3104.9,3103.9,0.00413669]
[1768250705679,1.03404881,3104.8,3103.9,0.00413669]
[1768250705881,1.03404881,3104.7,3103.9,0.00413669]
[1768250706091,0.16117,3105.0,3103.9,0.00413669]
[1768250706293,1.47009618,3104.9,3103.9,0.00413669]
[1768250706591,1.03402251,3104.8,3103.9,0.00413669]
[1768250706785,1.03402251,3104.7,3103.9,0.00413669]
[1768250706986,0.16117,3105.0,3103.9,0.00413669]
[1768250707184,1.47001566,3104.9,3103.9,0.00413669]
[1768250707389,1.03396485,3104.8,3103.9,0.14512005]
[1768250707591,0.16115,3105.5,3104.3,0.14098336]
[1768250707890,1.4701783,3105.4,3104.3,0.14098336]
[1768250708088,1.4701783,3105.3,3104.3,0.14098336]
[1768250708390,1.4701783,3105.2,3104.3,0.14098336]
[1768250708581,1.03407509,3105.1,3104.3,0.14098336]
[1768250708785,1.03407509,3105.0,3104.3,0.14098336]
[1768250709093,0.16115,3105.5,3104.3,0.14098336]
[1768250709288,1.47023621,3105.4,3104.3,0.14098336]
[1768250709486,1.47023621,3105.3,3104.3,0.14098336]
[1768250709681,1.47026603,3105.2,3104.3,0.14098336]
[1768250709888,1.03412584,3105.1,3104.3,0.14098336]
[1768250710095,1.03412584,3105.0,3104.3,0.14098336]
[1768250710392,0.16115,3105.5,3104.3,0.14098336]
[1768250710586,1.47020565,3105.4,3104.3,0.14098336]
[1768250710791,1.47020565,3105.3,3104.3,0.14098336]
[1768250711093,1.03410883,3105.2,3104.3,0.14098336]
[1768250711285,0.16115,3105.5,3104.3,0.14098336]
[1768250711486,1.03394276,3105.4,3104.3,0.14098336]
[1768250711687,1.03394276,3105.3,3104.3,0.14098336]
[1768250711888,1.03394276,3105.2,3104.3,0.14098336]
[1768250712088,0.16115,3105.5,3104.3,0.14098336]
[1768250712392,1.03375402,3105.4,3104.3,0.14098336]
[1768250712593,1.03375402,3105.3,3104.3,0.14098336]
[1768250712789,1.03375402,3105.2,3104.3,0.14098336]
[1768250712990,1.249,3106.0,3104.3,0.14098336]
[1768250713193,1.46969842,3105.9,3104.3,0.14098336]
[1768250713390,1.46969842,3105.8,3104.3,0.14098336]
[1768250713690,1.46969842,3105.7,3104.3,0.14098336]
[1768250713888,1.46969842,3105.6,3104.3,0.14098336]
[1768250714194,1.0337498,3105.5,3104.3,0.14098336]
[1768250714395,1.0337498,3105.4,3104.3,0.14098336]
[1768250714595,1.0337498,3105.3,3104.3,0.14098336]
[1768250714897,0.16113,3105.9,3104.3,0.14098336]
[1768250715098,1.46907068,3105.8,3104.3,0.14098336]
[1768250715395,1.46907068,3105.7,3104.3,0.14098336]
[1768250715696,1.46907068,3105.6,3104.3,0.14098336]
[1768250715888,1.03329304,3105.5,3104.3,0.14098336]
[1768250716088,1.03329304,3105.4,3104.3,0.14098336]
[1768250716289,1.03329304,3105.3,3104.3,0.14098336]
[1768250716595,0.16113,3105.9,3104.3,0.14098336]
[1768250716792,1.62982736,3105.8,3104.3,0.14098336]
[1768250716999,0.16115,3105.4,3103.9,0.13722697]
[1768250717196,1.46861445,3105.3,3103.9,0.13722697]
[1768250717395,1.46861445,3105.2,3103.9,0.13722697]
[1768250717594,1.03303144,3105.1,3103.9,0.13722697]
[1768250717794,1.03303144,3105.0,3103.9,0.13722697]
[1768250717994,0.16115,3105.4,3103.9,0.13722697]
[1768250718194,1.46808819,3105.3,3103.9,0.13722697]
[1768250718386,1.46808819,3105.2,3103.9,0.13722697]
[1768250718587,1.03260489,3105.1,3103.9,0.13722697]
[1768250718792,1.03260489,3105.0,3103.9,0.13722697]
[1768250718996,0.16115,3105.4,3103.9,0.13722697]
[1768250719197,1.46839051,3105.3,3103.9,0.13722697]
[1768250719397,1.46839051,3105.2,3103.9,0.13722697]
[1768250719697,0.16115,3105.4,3103.9,0.13722697]